[Event "GER-ch Youth-U18w 2022"]
[Site "Willingen"]
[Date "2022.06.10"]
[Round "8.3"]
[White "Heutling, Elina"]
[Black "Schneider, Katharina"]
[Result "1-0"]
[ECO "C77"]
[WhiteElo "1798"]
[BlackElo "1810"]
[Annotator "NA RC COMBH"]
[PlyCount "113"]
[EventDate "2022.06.05"]
[EventType "swiss"]
[EventRounds "9"]
[EventCountry "GER"]
[SourceTitle "playchess.com"]
[Source "ChessBase"]
[SourceQuality "1"]
[TimeControl "40/4500+30:900+30"]

1. e4 {[%emt 0:00:00]} e5 {[%emt 0:00:00]} 2. Nf3 {[%emt 0:00:00]} Nc6 {[%emt 0:00:00]} 3. Bb5 {[%emt 0:00:00]} a6 {[%emt 0:00:00]} 4. Ba4 {[%emt 0:00:00]} Nf6 {[%emt 0:00:00]} 5. d3 {[%emt 0:00:00]} b5 {[%emt 0:00:00]} 6. Bb3 {[%emt 0:00:00]} Bc5 {[%emt 0:00:00]} 7. Nc3 {[%emt 0:00:00] 7.c3 is the modern continuation.} d6 {[%emt 0:00:00]} 8. Nd5 {[%emt 0:00:00]} h6 {[%emt 0:00:00]} 9. c3 {[%emt 0:00:00]} Ba7 {[%emt 0:00:00]} 10. O-O {[%emt 0:00:00]} O-O {[%emt 0:12:23]} 11. h3 {[%emt 0:03:42] [#]} Na5 $146 {[%emt 0:02:08]} ({Predecessor:} 11... Be6 12. Nxf6+ Qxf6 13. Re1 Rad8 14. Be3 Bxe3 15. Rxe3 d5 16. exd5 Bxd5 17. Qe2 Qg6 {1-0 (52) Alekseev,E (2632)-Kobalia,M (2628) Tallinn 2016}) 12. Bc2 {[%emt 0:08:28]} c5 {[%emt 0:05:02]} 13. a4 {[%emt 0:11:05]} Nc6 {[%emt 0:04:41]} 14. axb5 {[%emt 0:02:38]} axb5 {[%emt 0:00:08]} 15. Bb3 {[%emt 0:05:48]} c4 {[%emt 0:07:30]} 16. Nxf6+ {[%emt 0:15:26]} Qxf6 {[%emt 0:00:47]} 17. Ba2 {[%emt 0:07:10]} Be6 {[%emt 0:18:17]} 18. Be3 {[%emt 0:03:47]} Rfd8 {[%emt 0:14:30]} (18... Bxe3 $17 19. fxe3 Qd8) 19. Bb1 {[%emt 0:05:21]} Qg6 {[%emt 0:04:25]} 20. Kh1 {[%emt 0:04:18]} Bxe3 {[%emt 0:10:16]} 21. Rxa8 {[%emt 0:00:09]} Rxa8 {[%emt 0:00:04]} 22. fxe3 {[%emt 0:00:08]} Ra1 {[%emt 0:00:11]} 23. d4 {[%emt 0:06:32]} exd4 {[%emt 0:01:07]} 24. exd4 {[%emt 0:01:02]} Qg3 {[%emt 0:02:28]} 25. d5 {[%emt 0:07:54]} Bxh3 {[%emt 0:00:06]} 26. Qe2 {[%emt 0:01:44]} Ne5 {[%emt 0:01:49]} 27. Nxe5 {[%emt 0:00:42]} dxe5 {[%emt 0:00:09]} 28. gxh3 {[%emt 0:00:42]} Qxh3+ {[%emt 0:00:07]} 29. Kg1 {[%emt 0:00:09]} Qg3+ {[%emt 0:00:17]} 30. Qg2 {[%emt 0:00:35]} Qe3+ {[%emt 0:00:48]} 31. Kh2 {[%emt 0:00:33]} Ra6 {[%emt 0:01:18]} 32. Qf2 {[%emt 0:00:57]} Qxf2+ {[%emt 0:01:00]} 33. Rxf2 {[%emt 0:00:02]} f6 {[%emt 0:01:29]} 34. Kg3 {[%emt 0:00:25]} Kf7 {[%emt 0:00:21]} 35. Bc2 {[%emt 0:01:35]} g6 {[%emt 0:00:44]} 36. Kf3 {[%emt 0:01:05]} h5 {[%emt 0:00:20]} 37. Rd2 {[%emt 0:00:58]} Ke7 {[%emt 0:00:31]} 38. Ke3 {[%emt 0:00:37]} Kd6 {[%emt 0:00:49]} (38... Ra2 $142) 39. Rg2 {[%emt 0:00:25]} g5 {[%emt 0:00:05]} 40. Bd1 {[%emt 0:00:31]} h4 {[%emt 0:00:08]} 41. Rf2 {[%emt 0:00:00]} Ke7 {[%emt 0:00:00]} 42. Kf3 {[%emt 0:00:00]} Ra1 {[%emt 0:00:00]} 43. Rd2 {[%emt 0:00:00]} Ra6 {[%emt 0:00:00]} 44. Kg4 {[%emt 0:00:00]} Rd6 {[%emt 0:00:00]} 45. Be2 {[%emt 0:01:29]} Ra6 {[%emt 0:00:00]} 46. Kf5 {[%emt 0:05:45]} Rd6 {[%emt 0:00:00]} 47. Bg4 {[%emt 0:01:41]} Kf7 {[%emt 0:00:00]} 48. Rd1 {[%emt 0:00:39]} Kg7 {[%emt 0:00:00]} 49. Ra1 {[%emt 0:00:20]} Kf7 {[%emt 0:00:00]} 50. Ra7+ {[%emt 0:00:36]} Kf8 {[%emt 0:00:00]} 51. Kg6 {[%emt 0:02:20]} Ke8 {[%emt 0:00:00]} 52. Be6 {[%emt 0:00:48]} Kd8 {[%emt 0:00:00]} 53. Kxf6 {[%emt 0:01:23]} h3 {[%emt 0:00:00]} 54. Kxe5 {[%emt 0:00:25]} Rb6 {[%emt 0:00:00]} 55. d6 {[%emt 0:00:56]} Rxd6 {[%emt 0:00:00]} 56. Kxd6 {[%emt 0:00:12]} h2 {[%emt 0:00:00]} 57. Ra4 1-0

[Event "GER-ch Youth-U18w 2022"]
[Site "Willingen"]
[Date "2022.06.10"]
[Round "8.4"]
[White "Basovskiy, Jana"]
[Black "Dietz, Kristin"]
[Result "1/2-1/2"]
[ECO "B40"]
[WhiteElo "1938"]
[BlackElo "1707"]
[Annotator "TA"]
[PlyCount "119"]
[EventDate "2022.06.05"]
[EventType "swiss"]
[EventRounds "9"]
[EventCountry "GER"]
[SourceTitle "playchess.com"]
[Source "ChessBase"]
[SourceQuality "1"]
[TimeControl "40/4500+30:900+30"]

{[%evp 9,119,46,43,16,62,48,46,56,162,78,104,104,107,76,126,78,142,142,147,143,143,141,161,156,272,246,256,223,230,175,174,144,147,136,136,106,106,102,105,103,125,129,130,129,126,116,122,130,143,124,169,158,189,152,151,161,158,161,162,162,170,68,75,83,87,66,66,65,64,-326,-321,-554,-561,-526,-473,-538,-489,-761,-545,-1493,-970,-662,0,-80,0,0,0,0,0,0,0,0,0,0,0,0,0,0,0,0,0,0,0,0,0,0,0,0,0,0,0,0]} 1. e4 {[%emt 0:00:00]} c5 {[%emt 0:00:00]} 2. Nf3 {[%emt 0:00:00]} e6 {[%emt 0:00:00]} 3. g3 {[%emt 0:00:00]} Nc6 {[%emt 0:00:00]} 4. Bg2 {[%emt 0:00:00]} Nge7 {[%emt 0:00:00]} 5. O-O {[%emt 0:00:00]} d5 {[%emt 0:00:00]} 6. d3 {[%emt 0:00:00] B40: Sicilian: 2...e6, Unusual lines.} dxe4 {[%emt 0:07:00]} (6... g6 $11) 7. dxe4 $14 {[%emt 0:00:00]} Qxd1 {[%emt 0:01:23]} 8. Rxd1 {[%emt 0:01:24] White is slightly better.} e5 {[%emt 0:03:36]} (8... Ng6 $14) 9. Be3 {[%emt 0:01:43]} (9. Nc3 $18 {is more deadly. Strongly threatening Nb5.} Rb8 10. Nb5) 9... Ng6 {[%emt 0:02:27]} 10. Nc3 {[%emt 0:13:15] [#] Hoping for Nb5.} Bg4 $146 {[%emt 0:03:29]} ({Predecessor:} 10... Be7 11. Nd5 b6 12. Nc7+ {1-0 (12) Turville Petre,F-Webb,D (1200) London 2005}) 11. Nd5 {[%emt 0:00:21]} O-O-O {[%emt 0:00:20] [#] Against Nc7} (11... Rc8 $142) 12. c3 {[%emt 0:00:20]} (12. Ng5 $142 $1 {[%cal Rg5f7]}) 12... f5 {[%emt 0:06:57]} (12... f6 $142) 13. h3 $16 {[%emt 0:05:16]} fxe4 {[%emt 0:04:12]} 14. hxg4 {[%emt 0:00:05]} exf3 {[%emt 0:00:08]} 15. Bxf3 {[%emt 0:00:04][%cal Bg2f3,Bf3e4,Be4f5][%mdl 32]} Bd6 {[%emt 0:04:18]} 16. Be4 {[%emt 0:04:36]} Na5 {[%emt 0:01:29]} (16... Nge7 $16 17. Nxe7+ Bxe7) 17. Bg5 {[%emt 0:01:31]} Rde8 {[%emt 0:02:41]} 18. Ne3 {[%emt 0:15:25]} Be7 {[%emt 0:02:48]} 19. Bf5+ {[%emt 0:04:16] This bishop pair is nice.} Kb8 {[%emt 0:00:23]} 20. Bxe7 {[%emt 0:00:08]} Nxe7 {[%emt 0:00:49]} 21. Rd7 {[%emt 0:04:52]} Nxf5 {[%emt 0:05:40]} 22. Nxf5 {[%emt 0:00:05]} g6 {[%emt 0:00:14]} 23. Ne3 {[%emt 0:00:24]} Rd8 {[%emt 0:00:42]} 24. Rad1 {[%emt 0:00:16]} Kc8 {[%emt 0:00:20]} 25. R7d5 {[%emt 0:01:37] 0x0.0022290038e7dp-1022s more active pieces. The black rooks are badly placed.} b6 {[%emt 0:03:30]} 26. Rxe5 {[%emt 0:03:02]} Rxd1+ {[%emt 0:00:13]} 27. Nxd1 {[%emt 0:00:10][%mdl 4096] Endgame KRN-KRN} Rd8 {[%emt 0:01:13]} 28. Ne3 {[%emt 0:02:25]} Nc6 {[%emt 0:02:06]} 29. Rd5 {[%emt 0:05:15]} Re8 {[%emt 0:06:04]} 30. Nc4 {[%emt 0:04:26]} Re2 {[%emt 0:01:41]} 31. Kf1 {[%emt 0:00:10]} Rc2 {[%emt 0:00:07]} 32. Ke1 {[%emt 0:05:17]} Kc7 {[%emt 0:05:33]} 33. Rd2 {[%emt 0:00:07]} Rc1+ {[%emt 0:02:46]} 34. Ke2 {[%emt 0:00:11]} Nd4+ {[%emt 0:00:52]} 35. Kd3 {[%emt 0:06:11]} (35. cxd4 $18 Rxc4 36. f4) 35... Nf3 $14 {[%emt 0:00:52]} 36. Re2 {[%emt 0:00:14]} b5 {[%emt 0:03:12]} 37. Ne5 {[%emt 0:03:38]} c4+ {[%emt 0:01:03]} 38. Ke4 {[%emt 0:00:18]} Ng1 {[%emt 0:01:43]} 39. Rd2 {[%emt 0:01:58][%mdl 8192]} (39. Re3 $14) 39... Re1+ $19 {[%emt 0:00:20]} 40. Kd5 $2 {[%emt 0:00:52] [#]} (40. Kf4 {only move.} Nh3+ 41. Kf3 Rxe5 42. Kg2) 40... Rxe5+ $1 {[%emt 0:00:10][%mdl 576] Remove Defender, Decoy} 41. Kxe5 {[%emt 0:15:19] KR-KN} Nf3+ {[%emt 0:15:04]} 42. Kf6 {[%emt 0:00:05]} Nxd2 {[%emt 0:00:04] KN-KP} 43. Kg7 {[%emt 0:00:17]} (43. Ke5 $142 Nf3+ 44. Ke4) 43... Ne4 {[%emt 0:00:41]} 44. f3 {[%emt 0:04:00]} Nxg3 {[%emt 0:02:28] White must now prevent ...h5.} 45. Kxh7 {[%emt 0:00:05]} Nf1 $2 {[%emt 0:00:04]} ({Better is} 45... Ne2 $19 {[%cal Oe2c3] aiming for ...Nxc3!} 46. Kxg6 {[#]} Nxc3 $1 {[%mdl 512]}) 46. g5 {[%emt 0:00:00]} (46. Kxg6 $11 {keeps the balance.} Kd7 47. Kf6) 46... Ne3 {[%emt 0:03:07]} (46... Kd7 $17 47. Kxg6 Ke6) 47. Kxg6 $11 {[%emt 0:00:06] The position is equal.} Kd6 {[%emt 0:00:06] And now ...Ke6 would win.} 48. Kf6 {[%emt 0:02:04]} Nd5+ {[%emt 0:00:13]} 49. Kf7 {[%emt 0:00:08]} Ke5 {[%emt 0:04:00]} 50. g6 {[%emt 0:01:41]} Ne3 {[%emt 0:05:07]} 51. g7 {[%emt 0:00:00]} Nf5 {[%emt 0:00:00]} 52. g8=Q {[%emt 0:00:00]} ({But not} 52. f4+ Kxf4 53. g8=N Ne3 $17) 52... Nh6+ {[%emt 0:00:00]} 53. Kg7 {[%emt 0:00:00]} Nxg8 {[%emt 0:00:00]} 54. Kxg8 {[%emt 0:00:00] KP-KP} a5 {[%emt 0:00:00] ...Kf4 is the strong threat.} 55. a3 {[%emt 0:00:00] Intending Kf7 and mate.} Kf4 {[%emt 0:00:00]} 56. Kf7 {[%emt 0:00:00]} Kxf3 {[%emt 0:00:00]} 57. Ke6 {[%emt 0:00:00] Threatening mate with Kd7.} Ke4 {[%emt 0:00:00]} 58. Kd6 {[%emt 0:00:00]} Kd3 $1 {[%emt 0:00:00] ( -> ...Kc2)} 59. Kc5 {[%emt 0:00:00]} Kc2 {[%emt 0:00:00]} 60. Kxb5 {[%emt 0:00:00] Black had all chances to win.  Weighted Error Value: White=0.54/Black=0.33} 1/2-1/2

[Event "GER-ch Youth-U18w 2022"]
[Site "Willingen"]
[Date "2022.06.10"]
[Round "8.5"]
[White "Gröschel, Karoline"]
[Black "Berghold, Lotta"]
[Result "0-1"]
[ECO "B03"]
[WhiteElo "1546"]
[BlackElo "1482"]
[Annotator "NA RC COMBH"]
[PlyCount "56"]
[EventDate "2022.06.05"]
[EventType "swiss"]
[EventRounds "9"]
[EventCountry "GER"]
[SourceTitle "playchess.com"]
[Source "ChessBase"]
[SourceQuality "1"]
[TimeControl "40/4500+30:900+30"]

1. e4 {[%emt 0:00:00]} Nf6 {[%emt 0:00:00]} 2. e5 {[%emt 0:00:00]} Nd5 {[%emt 0:00:00]} 3. c4 {[%emt 0:00:00]} Nb6 {[%emt 0:00:00]} 4. d4 {[%emt 0:00:00]} d6 {[%emt 0:00:00]} 5. f4 {[%emt 0:00:00]} g6 {[%emt 0:00:00]} 6. Nc3 {[%emt 0:00:00]} Bg7 {[%emt 0:00:00]} 7. Be2 {[%emt 0:00:00]} O-O {[%emt 0:00:00]} 8. Nf3 {[%emt 0:00:00]} dxe5 {[%emt 0:00:00]} 9. fxe5 {[%emt 0:00:00]} Bg4 {[%emt 0:08:29]} 10. O-O {[%emt 0:07:55]} c5 {[%emt 0:03:00]} 11. dxc5 {[%emt 0:11:45]} N6d7 {[%emt 0:00:12]} 12. Qd4 {[%emt 0:16:50]} Bxf3 {[%emt 0:22:05]} 13. Bxf3 {[%emt 0:00:55]} Nxe5 {[%emt 0:08:12]} 14. Qe4 {[%emt 0:04:18]} Nbc6 {[%emt 0:08:36]} 15. Be3 {[%emt 0:08:17]} Qa5 {[%emt 0:04:48]} 16. Be2 {[%emt 0:05:02]} Nd7 {[%emt 0:07:51]} 17. Nd5 {[%emt 0:14:10]} e6 {[%emt 0:01:24]} 18. Nf4 {[%emt 0:00:18]} Nxc5 {[%emt 0:01:10]} 19. Qc2 {[%emt 0:00:31]} Nd4 {[%emt 0:04:30]} 20. Qc1 {[%emt 0:02:38]} Nxe2+ 21. Nxe2 {[%emt 0:00:10]} Nd3 {[%emt 0:01:55]} 22. Qc2 {[%emt 0:00:41]} Rad8 {[%emt 0:01:29]} 23. Rad1 {[%emt 0:04:36]} Nxb2 {[%emt 0:03:55]} 24. Rb1 {[%emt 0:00:47]} Qa3 {[%emt 0:02:39]} 25. Bc1 {[%emt 0:00:34]} Qc5+ {[%emt 0:00:09]} 26. Kh1 {[%emt 0:00:28]} Nxc4 {[%emt 0:03:05]} 27. Rxb7 {[%emt 0:01:53]} Rc8 {[%emt 0:00:55]} 28. Qe4 {[%emt 0:01:03]} Nd6 {[%emt 0:01:05]} 0-1

[Event "GER-ch Youth-U18w 2022"]
[Site "Willingen"]
[Date "2022.06.10"]
[Round "8.6"]
[White "Kroemer, Paulina"]
[Black "Cheredzhiyska, Iva"]
[Result "0-1"]
[ECO "D04"]
[WhiteElo "1583"]
[BlackElo "1696"]
[Annotator "NA RC COMBH"]
[PlyCount "106"]
[EventDate "2022.06.05"]
[EventType "swiss"]
[EventRounds "9"]
[EventCountry "GER"]
[SourceTitle "playchess.com"]
[Source "ChessBase"]
[SourceQuality "1"]
[TimeControl "40/4500+30:900+30"]

1. d4 {[%emt 0:00:00]} d5 {[%emt 0:00:00]} 2. Nf3 {[%emt 0:00:00]} Nf6 {[%emt 0:00:00]} 3. e3 {[%emt 0:00:00]} b6 {[%emt 0:00:00]} 4. c4 {[%emt 0:00:00]} e6 {[%emt 0:00:00]} 5. cxd5 {[%emt 0:00:00]} exd5 {[%emt 0:00:00]} 6. Be2 {[%emt 0:00:19]} Bd6 {[%emt 0:00:06]} 7. O-O {[%emt 0:01:15]} O-O {[%emt 0:02:43]} 8. b3 {[%emt 0:01:28]} Nbd7 {[%emt 0:08:31]} 9. Bb2 {[%emt 0:01:17]} Bb7 {[%emt 0:04:11]} 10. Nc3 {[%emt 0:05:29]} a6 {[%emt 0:02:49]} 11. Rc1 {[%emt 0:04:17]} Rc8 {[%emt 0:02:26]} 12. Bd3 {[%emt 0:05:39]} Re8 {[%emt 0:03:08]} 13. a4 {[%emt 0:15:18]} Ne4 {[%emt 0:10:24]} 14. Qe2 {[%emt 0:05:34]} Ra8 {[%emt 0:06:06]} 15. Ne1 {[%emt 0:16:11]} Qh4 {[%emt 0:09:22]} 16. g3 {[%emt 0:05:31]} Qh3 {[%emt 0:03:29]} 17. f4 {[%emt 0:04:59]} Nxc3 {[%emt 0:06:57]} 18. Bxc3 {[%emt 0:00:43]} c5 {[%emt 0:02:22]} 19. Nf3 {[%emt 0:04:15]} f6 {[%emt 0:02:44]} 20. Rfe1 {[%emt 0:07:28]} Re7 {[%emt 0:02:43]} 21. Qg2 {[%emt 0:00:21]} Qxg2+ {[%emt 0:06:08]} 22. Kxg2 {[%emt 0:00:08]} Rae8 {[%emt 0:00:14]} 23. Kf2 {[%emt 0:00:09]} Bb8 {[%emt 0:04:17]} 24. Nd2 {[%emt 0:02:38]} g6 {[%emt 0:02:52]} 25. f5 {[%emt 0:01:28]} g5 {[%emt 0:01:25]} 26. b4 {[%emt 0:00:25]} c4 {[%emt 0:01:05]} 27. Be2 {[%emt 0:00:21]} Rxe3 {[%emt 0:01:37]} 28. Bh5 {[%emt 0:00:54]} Rxe1 {[%emt 0:00:29]} 29. Rxe1 {[%emt 0:00:04]} Rxe1 {[%emt 0:00:04]} 30. Kxe1 {[%emt 0:00:03]} b5 {[%emt 0:00:58]} 31. a5 {[%emt 0:02:17]} Kf8 {[%emt 0:01:14]} 32. Nf1 {[%emt 0:00:05]} Ke7 {[%emt 0:00:22]} 33. Ne3 {[%emt 0:00:23]} Kd6 {[%emt 0:01:30]} 34. Ng4 {[%emt 0:01:37]} Bc6 {[%emt 0:00:50]} 35. Ke2 {[%emt 0:00:35]} Ba7 {[%emt 0:00:09]} 36. Ke3 {[%emt 0:00:10]} Ke7 {[%emt 0:00:40]} 37. Nh6 {[%emt 0:00:21]} Kf8 {[%emt 0:00:41]} 38. Nf7 {[%emt 0:01:30]} Ne5 {[%emt 0:00:52]} 39. Nd8 {[%emt 0:01:09]} Bd7 {[%emt 0:00:13]} 40. Ne6+ {[%emt 0:00:18]} Bxe6 {[%emt 0:00:11]} 41. fxe6 {[%emt 0:15:30]} Ke7 {[%emt 0:15:32]} 42. h4 {[%emt 0:00:00]} gxh4 {[%emt 0:00:00]} 43. gxh4 {[%emt 0:00:00]} Ng6 {[%emt 0:00:00]} 44. Bf3 {[%emt 0:00:00]} Kxe6 {[%emt 0:00:00]} 45. h5 {[%emt 0:00:00]} Ne7 {[%emt 0:00:00]} 46. Kf4 {[%emt 0:00:00]} Bb8+ {[%emt 0:00:00]} 47. Kg4 {[%emt 0:00:00]} Nc6 {[%emt 0:00:00]} 48. h6 {[%emt 0:00:00]} Bd6 {[%emt 0:00:00]} 49. Kh5 {[%emt 0:00:00]} Nxb4 {[%emt 0:00:00]} 50. Bg4+ {[%emt 0:00:00]} f5 {[%emt 0:00:00]} 51. Bh3 {[%emt 0:00:00]} Nd3 {[%emt 0:00:00]} 52. Kg5 {[%emt 0:00:00]} Bf4+ {[%emt 0:00:00]} 53. Kh5 {[%emt 0:00:00]} b4 {[%emt 0:00:00]} 0-1

[Event "GER-ch Youth-U18w 2022"]
[Site "Willingen"]
[Date "2022.06.10"]
[Round "8.7"]
[White "Orlova, Alicia"]
[Black "Goetten Wagner, Julia"]
[Result "1/2-1/2"]
[ECO "C47"]
[WhiteElo "1724"]
[BlackElo "1631"]
[Annotator "NA RC COMBH"]
[PlyCount "98"]
[EventDate "2022.06.05"]
[EventType "swiss"]
[EventRounds "9"]
[EventCountry "GER"]
[SourceTitle "playchess.com"]
[Source "ChessBase"]
[SourceQuality "1"]
[TimeControl "40/4500+30:900+30"]

1. e4 {[%emt 0:00:00]} e5 {[%emt 0:00:00]} 2. Nf3 {[%emt 0:00:00]} Nc6 {[%emt 0:00:00]} 3. Nc3 {[%emt 0:00:00]} Nf6 {[%emt 0:00:00]} 4. a3 {[%emt 0:00:00]} d5 {[%emt 0:00:00]} 5. Bb5 {[%emt 0:00:00]} Bg4 {[%emt 0:00:00]} 6. exd5 {[%emt 0:00:00]} Nxd5 {[%emt 0:00:00]} 7. Qe2 {[%emt 0:00:00]} f6 {[%emt 0:01:12]} 8. d4 {[%emt 0:00:00]} Nxc3 {[%emt 0:05:51]} 9. bxc3 {[%emt 0:00:00]} Qd5 {[%emt 0:02:03]} 10. c4 {[%emt 0:04:15]} Bxf3 {[%emt 0:04:17]} 11. cxd5 {[%emt 0:00:22]} Bxe2 {[%emt 0:00:26]} 12. Kxe2 {[%emt 0:00:17]} a6 {[%emt 0:02:20]} 13. dxc6 {[%emt 0:08:15]} axb5 {[%emt 0:00:08]} 14. cxb7 {[%emt 0:00:14]} Rb8 {[%emt 0:00:11]} 15. dxe5 {[%emt 0:00:24]} fxe5 {[%emt 0:00:23]} 16. Bb2 {[%emt 0:00:22]} Bd6 {[%emt 0:02:04]} 17. Rhe1 {[%emt 0:01:15]} O-O {[%emt 0:07:59]} 18. Kf1 {[%emt 0:01:02]} Rfe8 {[%emt 0:01:20]} 19. Re3 {[%emt 0:02:54]} Rxb7 {[%emt 0:08:08]} 20. Rae1 {[%emt 0:00:52]} Ra8 {[%emt 0:01:17]} 21. Rg3 {[%emt 0:04:50]} c6 {[%emt 0:04:12]} 22. Rd1 {[%emt 0:12:33]} Bf8 {[%emt 0:05:31]} 23. Rdd3 {[%emt 0:07:36]} e4 {[%emt 0:03:35]} 24. Rd1 {[%emt 0:02:30]} Rba7 {[%emt 0:04:36]} 25. Rc3 {[%emt 0:07:05]} c5 {[%emt 0:04:33]} 26. Rd5 {[%emt 0:05:37]} Ra4 {[%emt 0:03:52]} 27. Ke2 {[%emt 0:05:47]} b4 {[%emt 0:03:45]} 28. axb4 {[%emt 0:00:26]} Ra2 {[%emt 0:03:41]} 29. bxc5 {[%emt 0:02:51]} Rxb2 {[%emt 0:02:30]} 30. c6 {[%emt 0:00:48]} Be7 {[%emt 0:03:18]} 31. Rd7 {[%emt 0:05:14]} Bf6 {[%emt 0:00:10]} 32. Rc4 {[%emt 0:00:44]} Rc8 {[%emt 0:02:57]} 33. Ke3 {[%emt 0:02:42]} Rb6 {[%emt 0:00:49]} 34. c7 {[%emt 0:00:55]} Kf8 {[%emt 0:01:39]} 35. Kxe4 {[%emt 0:03:49]} Ke8 {[%emt 0:00:27]} 36. Rd5 {[%emt 0:01:18]} Rb7 {[%emt 0:00:31]} 37. Rdc5 {[%emt 0:01:38]} Be7 {[%emt 0:00:38]} 38. Rh5 {[%emt 0:01:30]} h6 {[%emt 0:00:30]} 39. h4 {[%emt 0:01:44]} Rbxc7 {[%emt 0:00:26]} 40. Rxc7 {[%emt 0:00:09]} Rxc7 {[%emt 0:00:06]} 41. Kd3 {[%emt 0:15:13]} Rc5 {[%emt 0:17:32]} 42. Rxc5 {[%emt 0:00:46]} Bxc5 {[%emt 0:03:13]} 43. f4 {[%emt 0:04:15]} h5 {[%emt 0:04:41]} 44. Ke4 {[%emt 0:01:16]} Kf7 {[%emt 0:00:00]} 45. Kf3 {[%emt 0:00:00]} Be7 {[%emt 0:00:00]} 46. g4 {[%emt 0:00:00]} g6 {[%emt 0:00:00]} 47. f5 {[%emt 0:00:00]} Bxh4 {[%emt 0:00:00]} 48. fxg6+ {[%emt 0:00:00]} Kxg6 {[%emt 0:00:00]} 49. gxh5+ {[%emt 0:00:00]} Kxh5 {[%emt 0:00:00]} 1/2-1/2

[Event "GER-ch Youth-U18w 2022"]
[Site "Willingen"]
[Date "2022.06.10"]
[Round "8.8"]
[White "Wilmink, Anna"]
[Black "Albayrak, Nese Pinar"]
[Result "1-0"]
[ECO "C45"]
[WhiteElo "1700"]
[BlackElo "1683"]
[Annotator "NA RC COMBH"]
[PlyCount "55"]
[EventDate "2022.06.05"]
[EventType "swiss"]
[EventRounds "9"]
[EventCountry "GER"]
[SourceTitle "playchess.com"]
[Source "ChessBase"]
[SourceQuality "1"]
[TimeControl "40/4500+30:900+30"]

1. e4 e5 {[%emt 0:00:00]} 2. Nf3 {[%emt 0:00:00]} Nc6 {[%emt 0:00:00]} 3. d4 {[%emt 0:00:00]} exd4 {[%emt 0:00:00]} 4. Nxd4 {[%emt 0:00:00]} Bc5 {[%emt 0:00:00]} 5. Nf5 {[%emt 0:00:00]} Qf6 {[%emt 0:00:00]} 6. Nc3 {[%emt 0:00:00]} Nge7 {[%emt 0:01:27]} 7. Ne3 {[%emt 0:00:00]} Ne5 {[%emt 0:10:11]} 8. Be2 {[%emt 0:00:00]} d6 {[%emt 0:03:57]} 9. O-O {[%emt 0:00:00]} Be6 {[%emt 0:11:28]} 10. Kh1 {[%emt 0:00:00]} g5 {[%emt 0:09:09]} 11. Na4 {[%emt 0:00:00]} O-O-O {[%emt 0:03:48]} 12. Nxc5 {[%emt 0:00:30]} dxc5 {[%emt 0:00:03]} 13. Qe1 {[%emt 0:00:32]} Qg6 {[%emt 0:09:19]} 14. f3 {[%emt 0:05:41]} h5 {[%emt 0:08:44]} 15. Qa5 {[%emt 0:02:27]} N7c6 {[%emt 0:02:26]} 16. Qxc5 {[%emt 0:03:12]} h4 {[%emt 0:04:51]} 17. b4 {[%emt 0:03:56]} g4 {[%emt 0:04:29]} 18. f4 {[%emt 0:30:09]} h3 {[%emt 0:02:04]} 19. f5 {[%emt 0:08:07]} hxg2+ {[%emt 0:00:14]} 20. Nxg2 {[%emt 0:04:22]} Rxh2+ {[%emt 0:05:13]} 21. Kg1 {[%emt 0:08:49]} Qh7 {[%emt 0:02:38]} 22. Bf4 {[%emt 0:02:08]} Rh3 {[%emt 0:05:55]} 23. Kf2 {[%emt 0:02:25]} g3+ {[%emt 0:00:30]} 24. Bxg3 {[%emt 0:01:32]} Bxf5 {[%emt 0:00:29]} 25. exf5 {[%emt 0:01:40]} Qxf5+ {[%emt 0:00:02]} 26. Bf4 {[%emt 0:02:20]} Rh2 {[%emt 0:00:47]} 27. Kg1 {[%emt 0:02:57]} Rh7 {[%emt 0:00:43]} 28. Bd3 1-0

[Event "GER-ch Youth-U18w 2022"]
[Site "Willingen"]
[Date "2022.06.10"]
[Round "8.9"]
[White "Yue, Qizhou"]
[Black "Kieckbusch, Lotta"]
[Result "1-0"]
[ECO "C04"]
[WhiteElo "1715"]
[BlackElo "1207"]
[Annotator "NA RC COMBH"]
[PlyCount "83"]
[EventDate "2022.06.05"]
[EventType "swiss"]
[EventRounds "9"]
[EventCountry "GER"]
[SourceTitle "playchess.com"]
[Source "ChessBase"]
[SourceQuality "1"]
[TimeControl "40/4500+30:900+30"]

1. e4 {[%emt 0:00:00]} e6 {[%emt 0:00:00]} 2. d4 {[%emt 0:00:00]} d5 {[%emt 0:00:00]} 3. Nd2 {[%emt 0:00:00]} Nc6 {[%emt 0:00:00]} 4. Ngf3 {[%emt 0:00:00]} Nf6 {[%emt 0:00:00]} 5. e5 {[%emt 0:00:00]} Nd7 {[%emt 0:00:00]} 6. c3 {[%emt 0:00:00]} f6 {[%emt 0:00:00]} 7. Qe2 {[%emt 0:02:33]} fxe5 {[%emt 0:00:00]} 8. Nxe5 {[%emt 0:02:56]} Ndxe5 {[%emt 0:00:00]} 9. dxe5 {[%emt 0:00:11]} Bc5 {[%emt 0:00:00]} 10. Nf3 {[%emt 0:02:20]} O-O {[%emt 0:00:00]} 11. Be3 {[%emt 0:02:08]} Qe7 {[%emt 0:00:11]} 12. Qd2 {[%emt 0:03:56]} Bd7 {[%emt 0:04:15]} 13. Bd3 {[%emt 0:05:58]} d4 {[%emt 0:29:12]} 14. Bxd4 {[%emt 0:03:22]} Rxf3 {[%emt 0:03:10]} 15. Bxc5 {[%emt 0:07:07]} Qxc5 {[%emt 0:09:34]} 16. gxf3 {[%emt 0:00:16]} Nxe5 {[%emt 0:00:19]} 17. Be4 {[%emt 0:02:20]} Rf8 {[%emt 0:01:54]} 18. O-O-O {[%emt 0:09:56]} Ba4 {[%emt 0:02:12]} 19. Qd4 {[%emt 0:04:46]} Qxd4 {[%emt 0:01:42]} 20. Rxd4 {[%emt 0:00:09]} Bc6 {[%emt 0:01:16]} 21. Bxc6 {[%emt 0:01:14]} Nxc6 {[%emt 0:00:18]} 22. Rd7 {[%emt 0:01:55]} Rxf3 {[%emt 0:01:27]} 23. Rxc7 {[%emt 0:02:28]} Rf7 {[%emt 0:00:15]} 24. Rc8+ {[%emt 0:03:19]} Rf8 {[%emt 0:00:17]} 25. Rxf8+ {[%emt 0:00:17]} Kxf8 {[%emt 0:00:07]} 26. Kd2 {[%emt 0:02:17]} Ke7 {[%emt 0:00:31]} 27. Ke3 {[%emt 0:01:25]} g6 {[%emt 0:00:42]} 28. Ke4 {[%emt 0:01:17]} Kf6 {[%emt 0:01:05]} 29. Rd1 {[%emt 0:07:49]} Ke7 {[%emt 0:00:54]} 30. c4 {[%emt 0:01:46]} b6 {[%emt 0:01:43]} 31. a3 {[%emt 0:01:51]} a5 {[%emt 0:00:10]} 32. b3 {[%emt 0:00:44]} h6 {[%emt 0:00:57]} 33. Rd3 {[%emt 0:00:51]} h5 {[%emt 0:01:30]} 34. f4 {[%emt 0:03:34]} Nd8 {[%emt 0:01:39]} 35. Rxd8 {[%emt 0:03:30]} Kxd8 {[%emt 0:00:20]} 36. Ke5 {[%emt 0:00:08]} Ke7 {[%emt 0:00:35]} 37. b4 {[%emt 0:00:36]} axb4 {[%emt 0:00:35]} 38. axb4 {[%emt 0:00:04]} h4 {[%emt 0:01:38]} 39. h3 {[%emt 0:01:26]} Kf7 {[%emt 0:02:47]} 40. c5 {[%emt 0:00:22]} bxc5 {[%emt 0:00:28]} 41. bxc5 {[%emt 0:15:04]} Ke7 {[%emt 0:15:15]} 42. c6 {[%emt 0:00:09]} 1-0